Workbook

Sheet 9.1
D8: Case 1 | F8: Case 2 | J8: Case 1 | K8: Case 2
C9: IR | D9: ∆MTM | E9: IM | F9: ∆MTM | G9: IM | I9: Alpha | J9: 0.99 | K9: 0.99
B10: 0 | C10: 0.03 | I10: Metric | J10: VAR | K10: ES
B11: =B10+1 -> 1 | C11: 0.03019931752 | D11: =TRANSPOSE(CalcMTMVector(C10:C260,ReturnsType,5,IR1Now)) -> 0.0009249952106 | F11: =TRANSPOSE(CalcMTMVector(C10:C260,ReturnsType2,5,IR1Now)) -> 0.0009249952106 | I11: Returns | J11: Absolute | K11: Absolute
B12: =B11+1 -> 2 | C12: 0.0304584872 | D12: 0.00120199852 | F12: 0.00120199852 | I12: Data window | J12: 1250 | K12: 1250
B13: 3 | C13: 0.02827993809 | D13: -0.0101576805 | F13: -0.0101576805 | I13: Stress window | J13: 0 | K13: 0
B14: 4 | C14: 0.03130660858 | D14: 0.01400837396 | F14: 0.01400837396
B15: 5 | C15: 0.03127469017 | D15: -0.0001477397953 | F15: -0.0001477397953
B16: 6 | C16: 0.03143748788 | D16: 0.0007532384349 | F16: 0.0007532384349
B17: 7 | C17: 0.03287050034 | D17: 0.006607238185 | F17: 0.006607238185
B18: 8 | C18: 0.03261984543 | D18: -0.001156407563 | F18: -0.001156407563
B19: 9 | C19: 0.03206801492 | D19: -0.002549314566 | F19: -0.002549314566
B20: 10 | C20: 0.03236893177 | D20: 0.001389140813 | F20: 0.001389140813
B21: 11 | C21: 0.03333653361 | D21: 0.0044563023 | F21: 0.0044563023
B22: 12 | C22: 0.03400975423 | D22: 0.003095458125 | F22: 0.003095458125
B23: 13 | C23: 0.03410759612 | D23: 0.0004497685806 | F23: 0.0004497685806
B24: 14 | C24: 0.03411081152 | D24: 1.478074066e-05 | F24: 1.478074066e-05
B25: 15 | C25: 0.03538191944 | D25: 0.005825097367 | F25: 0.005825097367
B26: 16 | C26: 0.03539933168 | D26: 7.979155365e-05 | F26: 7.979155365e-05
B27: 17 | C27: 0.03594388567 | D27: 0.00249212424 | F27: 0.00249212424
B28: 18 | C28: 0.03489431012 | D28: -0.004815577652 | F28: -0.004815577652
B29: 19 | C29: 0.0344574532 | D29: -0.002006478561 | F29: -0.002006478561
B30: 20 | C30: 0.03435723908 | D30: -0.0004603942631 | F30: -0.0004603942631
B31: 21 | C31: 0.03390403084 | D31: -0.002084379782 | F31: -0.002084379782
B32: 22 | C32: 0.03385469328 | D32: -0.0002269388031 | F32: -0.0002269388031
B33: 23 | C33: 0.03379001348 | D33: -0.0002975555334 | F33: -0.0002975555334
B34: 24 | C34: 0.03432153842 | D34: 0.002442093468 | F34: 0.002442093468
B35: 25 | C35: 0.03355545007 | D35: -0.003526352761 | F35: -0.003526352761
B36: 26 | C36: 0.03461828221 | D36: 0.004879669195 | F36: 0.004879669195
B37: 27 | C37: 0.03426449215 | D37: -0.001625715067 | F37: -0.001625715067
B38: 28 | C38: 0.03376343673 | D38: -0.002305224207 | F38: -0.002305224207
B39: 29 | C39: 0.03274085867 | D39: -0.004716321211 | F39: -0.004716321211
B40: 30 | C40: 0.03248345206 | D40: -0.001187950883 | F40: -0.001187950883
B41: 31 | C41: 0.03211001534 | D41: -0.001725004979 | F41: -0.001725004979
B42: 32 | C42: 0.03105141715 | D42: -0.004902567807 | F42: -0.004902567807
B43: 33 | C43: 0.03100042649 | D43: -0.0002361766905 | F43: -0.0002361766905
B44: 34 | C44: 0.03074323446 | D44: -0.00119199916 | F44: -0.00119199916
B45: 35 | C45: 0.03063606302 | D45: -0.0004968335347 | F45: -0.0004968335347
B46: 36 | C46: 0.02679363433 | D46: -0.01798082954 | F46: -0.01798082954
B47: 37 | C47: 0.0279967386 | D47: 0.005613461328 | F47: 0.005613461328
B48: 38 | C48: 0.02885620749 | D48: 0.004001718792 | F48: 0.004001718792
B49: 39 | C49: 0.02781620305 | D49: -0.004854607425 | F49: -0.004854607425
B50: 40 | C50: 0.02832336365 | D50: 0.002364431067 | F50: 0.002364431067
B51: 41 | C51: 0.03056845143 | D51: 0.01040966378 | F51: 0.01040966378
B52: 42 | C52: 0.03062715501 | D52: 0.0002721484256 | F52: 0.0002721484256
B53: 43 | C53: 0.03108132343 | D53: 0.002103186358 | F53: 0.002103186358
B54: 44 | C54: 0.02905481064 | D54: -0.009430947447 | F54: -0.009430947447
B55: 45 | C55: 0.02957222533 | D55: 0.002404898045 | F55: 0.002404898045
B56: 46 | C56: 0.0295508129 | D56: -9.95282828e-05 | F56: -9.95282828e-05
B57: 47 | C57: 0.0295491237 | D57: -7.85170654e-06 | F57: -7.85170654e-06
B58: 48 | C58: 0.0295943998 | D58: 0.0002104279653 | F58: 0.0002104279653
B59: 49 | C59: 0.03058987283 | D59: 0.00461540918 | F59: 0.00461540918
B60: 50 | C60: 0.03154378 | D60: 0.004412431035 | F60: 0.004412431035
B61: 51 | C61: 0.03226774861 | D61: 0.003342923289 | F61: 0.003342923289
B62: 52 | C62: 0.03206111127 | D62: -0.0009546272153 | F62: -0.0009546272153
B63: 53 | C63: 0.03196246021 | D63: -0.0004558595316 | F63: -0.0004558595316
B64: 54 | C64: 0.03231227407 | D64: 0.00161508968 | F64: 0.00161508968
B65: 55 | C65: 0.03297326022 | D65: 0.003046869444 | F65: 0.003046869444
B66: 56 | C66: 0.03047739519 | D66: -0.01157499522 | F66: -0.01157499522
B67: 57 | C67: 0.02972070515 | D67: -0.003515755844 | F67: -0.003515755844
B68: 58 | C68: 0.02894942847 | D68: -0.003590275973 | F68: -0.003590275973
B69: 59 | C69: 0.02879637184 | D69: -0.000712741325 | F69: -0.000712741325
B70: 60 | C70: 0.02876722242 | D70: -0.0001357502457 | F70: -0.0001357502457
B71: 61 | C71: 0.03015851563 | D71: 0.00645737286 | F71: 0.00645737286
B72: 62 | C72: 0.0297222445 | D72: -0.002027008335 | F72: -0.002027008335
B73: 63 | C73: 0.02969224085 | D73: -0.0001394135359 | F73: -0.0001394135359
B74: 64 | C74: 0.02999309784 | D74: 0.001396922813 | F74: 0.001396922813
B75: 65 | C75: 0.02914524703 | D75: -0.003944841967 | F75: -0.003944841967
B76: =B75+1 -> 66 | C76: 0.02828366667 | D76: -0.004017159064 | F76: -0.004017159064
B77: 67 | C77: 0.02846980269 | D77: 0.0008674737629 | F77: 0.0008674737629
B78: 68 | C78: 0.02906326866 | D78: 0.002761803865 | F78: 0.002761803865
B79: 69 | C79: 0.02822493305 | D79: -0.003909339793 | F79: -0.003909339793
B80: 70 | C80: 0.02743772496 | D80: -0.003677984885 | F80: -0.003677984885
B81: 71 | C81: 0.02738710034 | D81: -0.0002365570629 | F81: -0.0002365570629
B82: 72 | C82: 0.0275743803 | D82: 0.0008747153154 | F82: 0.0008747153154
B83: 73 | C83: 0.0277988348 | D83: 0.001047769288 | F83: 0.001047769288
B84: 74 | C84: 0.02704886586 | D84: -0.003507327196 | F84: -0.003507327196
B85: 75 | C85: 0.02512752919 | D85: -0.009027701816 | F85: -0.009027701816
B86: 76 | C86: 0.02506244799 | D86: -0.000305842956 | F86: -0.000305842956
B87: 77 | C87: 0.02544506176 | D87: 0.001796374322 | F87: 0.001796374322
B88: 78 | C88: 0.02583275702 | D88: 0.001818506176 | F88: 0.001818506176
B89: 79 | C89: 0.0247415245 | D89: -0.005132174623 | F89: -0.005132174623
B90: 80 | C90: 0.02308333602 | D90: -0.007830374091 | F90: -0.007830374091
B91: 81 | C91: 0.02369771477 | D91: 0.002896881606 | F91: 0.002896881606
B92: 82 | C92: 0.02187924981 | D92: -0.008612641804 | F92: -0.008612641804
B93: 83 | C93: 0.02255807808 | D93: 0.003209726172 | F93: 0.003209726172
B94: 84 | C94: 0.02291581684 | D94: 0.001690024533 | F94: 0.001690024533
B95: 85 | C95: 0.01957588756 | D95: -0.01590839532 | F95: -0.01590839532
B96: 86 | C96: 0.01967691966 | D96: 0.0004811057896 | F96: 0.0004811057896
B97: 87 | C97: 0.01983307944 | D97: 0.000743333376 | F97: 0.000743333376
B98: 88 | C98: 0.01869364945 | D98: -0.0054390037 | F98: -0.0054390037
B99: 89 | C99: 0.01842516308 | D99: -0.001282451485 | F99: -0.001282451485
B100: 90 | C100: 0.01833113897 | D100: -0.0004492193948 | F100: -0.0004492193948
B101: 91 | C101: 0.01847021924 | D101: 0.0006642569217 | F101: 0.0006642569217
B102: 92 | C102: 0.01859108149 | D102: 0.0005770746775 | F102: 0.0005770746775
B103: 93 | C103: 0.01854302683 | D103: -0.0002294712291 | F103: -0.0002294712291
B104: 94 | C104: 0.01915983426 | D104: 0.002940919482 | F104: 0.002940919482
B105: 95 | C105: 0.01975024947 | D105: 0.002810997303 | F105: 0.002810997303
B106: 96 | C106: 0.02016857619 | D106: 0.001989627909 | F106: 0.001989627909
B107: 97 | C107: 0.01959996978 | D107: -0.002708165073 | F107: -0.002708165073
B108: 98 | C108: 0.0204923516 | D108: 0.004240932775 | F108: 0.004240932775
B109: 99 | C109: 0.02098494896 | D109: 0.002338175807 | F109: 0.002338175807
B110: 100 | C110: 0.02048820443 | D110: -0.002360740187 | F110: -0.002360740187
B111: 101 | C111: 0.0215886806 | D111: 0.005215811164 | F111: 0.005215811164
B112: 102 | C112: 0.02243022226 | D112: 0.003980337522 | F112: 0.003980337522
B113: 103 | C113: 0.02217794142 | D113: -0.001193980888 | F113: -0.001193980888
B114: 104 | C114: 0.02246983285 | D114: 0.001380458758 | F114: 0.001380458758
B115: 105 | C115: 0.02285082367 | D115: 0.001800158479 | F115: 0.001800158479
B116: 106 | C116: 0.02254929219 | D116: -0.001425771992 | F116: -0.001425771992
B117: 107 | C117: 0.01956604501 | D117: -0.0142098291 | F117: -0.0142098291
B118: 108 | C118: 0.02064928921 | D118: 0.005145997546 | F118: 0.005145997546
B119: 109 | C119: 0.0231982433 | D119: 0.01203339783 | F119: 0.01203339783
B120: 110 | C120: 0.02218058845 | D120: -0.004816269596 | F120: -0.004816269596
B121: 111 | C121: 0.02413967091 | D121: 0.009227350003 | F121: 0.009227350003
B122: 112 | C122: 0.02383390339 | D122: -0.001441255494 | F122: -0.001441255494
B123: 113 | C123: 0.02422903205 | D123: 0.001860663084 | F123: 0.001860663084
B124: 114 | C124: 0.0237325791 | D124: -0.002340645008 | F124: -0.002340645008
B125: 115 | C125: 0.02373370668 | D125: 5.316222389e-06 | F125: 5.316222389e-06
B126: 116 | C126: 0.02349511481 | D126: -0.001125552747 | F126: -0.001125552747
B127: 117 | C127: 0.02371525489 | D127: 0.001037946598 | F127: 0.001037946598
B128: 118 | C128: 0.02377139601 | D128: 0.0002646654278 | F128: 0.0002646654278
B129: 119 | C129: 0.02559691546 | D129: 0.008567642512 | F129: 0.008567642512
B130: 120 | C130: 0.02509699196 | D130: -0.002349144578 | F130: -0.002349144578
B131: 121 | C131: 0.02424613596 | D131: -0.004006517804 | F131: -0.004006517804
B132: 122 | C132: 0.02429518409 | D132: 0.0002309304726 | F132: 0.0002309304726
B133: 123 | C133: 0.02478080105 | D133: 0.00228368505 | F133: 0.00228368505
B134: 124 | C134: 0.0254180135 | D134: 0.002991914904 | F134: 0.002991914904
B135: 125 | C135: 0.02555436622 | D135: 0.0006400057787 | F135: 0.0006400057787
B136: 126 | C136: 0.02440065282 | D136: -0.005430559577 | F136: -0.005430559577
B137: 127 | C137: 0.02389309888 | D137: -0.002392042212 | F137: -0.002392042212
B138: 128 | C138: 0.02296953304 | D138: -0.004362522371 | F138: -0.004362522371
B139: 129 | C139: 0.02291421665 | D139: -0.0002613259466 | F139: -0.0002613259466
B140: =B139+1 -> 130 | C140: 0.02532261159 | D140: 0.01131081981 | F140: 0.01131081981
B141: 131 | C141: 0.02555275487 | D141: 0.001080239592 | F141: 0.001080239592
B142: 132 | C142: 0.02579796137 | D142: 0.001150252669 | F142: 0.001150252669
B143: 133 | C143: 0.02559140515 | D143: -0.0009694357099 | F143: -0.0009694357099
B144: 134 | C144: 0.02543388368 | D144: -0.0007395845948 | F144: -0.0007395845948
B145: 135 | C145: 0.02460322207 | D145: -0.003908007101 | F145: -0.003908007101
B146: 136 | C146: 0.02379981799 | D146: -0.003787214724 | F146: -0.003787214724
B147: 137 | C147: 0.0243910134 | D147: 0.002782838176 | F147: 0.002782838176
B148: 138 | C148: 0.02498333456 | D148: 0.002784096443 | F148: 0.002784096443
B149: 139 | C149: 0.02528709999 | D149: 0.001426732203 | F149: 0.001426732203
B150: 140 | C150: 0.02358733545 | D150: -0.008016795545 | F150: -0.008016795545
B151: 141 | C151: 0.02490694902 | D151: 0.006203760262 | F151: 0.006203760262
B152: 142 | C152: 0.02542569611 | D152: 0.002435636635 | F152: 0.002435636635
B153: 143 | C153: 0.02444357481 | D153: -0.004622385135 | F153: -0.004622385135
B154: 144 | C154: 0.02515673757 | D154: 0.003350667571 | F154: 0.003350667571
B155: 145 | C155: 0.02603295368 | D155: 0.004107928405 | F155: 0.004107928405
B156: 146 | C156: 0.02710118666 | D156: 0.004995091706 | F156: 0.004995091706
B157: 147 | C157: 0.02868446235 | D157: 0.007374879876 | F157: 0.007374879876
B158: 148 | C158: 0.02971485632 | D158: 0.00478751551 | F158: 0.00478751551
B159: 149 | C159: 0.02888459688 | D159: -0.003865450801 | F159: -0.003865450801
B160: 150 | C160: 0.02902902985 | D160: 0.0006722017444 | F160: 0.0006722017444
B161: 151 | C161: 0.02959138134 | D161: 0.002613638296 | F161: 0.002613638296
B162: 152 | C162: 0.02957451389 | D162: -7.839798637e-05 | F162: -7.839798637e-05
B163: 153 | C163: 0.02957942375 | D163: 2.282021307e-05 | F163: 2.282021307e-05
B164: 154 | C164: 0.02954827346 | D164: -0.0001447922802 | F164: -0.0001447922802
B165: 155 | C165: 0.02950510195 | D165: -0.0002006902514 | F165: -0.0002006902514
B166: 156 | C166: 0.03099018293 | D166: 0.006878715712 | F166: 0.006878715712
B167: 157 | C167: 0.03090028301 | D167: -0.0004164967192 | F167: -0.0004164967192
B168: 158 | C168: 0.03090752373 | D168: 3.354487972e-05 | F168: 3.354487972e-05
B169: 159 | C169: 0.0308238231 | D169: -0.0003878483261 | F169: -0.0003878483261
B170: 160 | C170: 0.03061136083 | D170: -0.0009850080802 | F170: -0.0009850080802
B171: 161 | C171: 0.02898559298 | D171: -0.007567245847 | F171: -0.007567245847
B172: 162 | C172: 0.02940499258 | D172: 0.001950127679 | F172: 0.001950127679
B173: 163 | C173: 0.03053629991 | D173: 0.005245875653 | F173: 0.005245875653
B174: 164 | C174: 0.02994200496 | D174: -0.002759741634 | F174: -0.002759741634
B175: 165 | C175: 0.03015461917 | D175: 0.0009868101739 | F175: 0.0009868101739
B176: 166 | C176: 0.0319480039 | D176: 0.008287394488 | F176: 0.008287394488
B177: 167 | C177: 0.03058616796 | D177: -0.006314070412 | F177: -0.006314070412
B178: 168 | C178: 0.03122651291 | D178: 0.002964293969 | F178: 0.002964293969
B179: 169 | C179: 0.03089787305 | D179: -0.001522562392 | F179: -0.001522562392
B180: 170 | C180: 0.03072164966 | D180: -0.000816779532 | F180: -0.000816779532
B181: 171 | C181: 0.03249105744 | D181: 0.008165799067 | F181: 0.008165799067
B182: 172 | C182: 0.03289692881 | D182: 0.001871244365 | F182: 0.001871244365
B183: 173 | C183: 0.03288934312 | D183: -3.497400741e-05 | F183: -3.497400741e-05
B184: 174 | C184: 0.03213708565 | D184: -0.003474651417 | F184: -0.003474651417
B185: 175 | C185: 0.03320295036 | D185: 0.00491044736 | F185: 0.00491044736
B186: 176 | C186: 0.03291962864 | D186: -0.00130616483 | F186: -0.00130616483
B187: 177 | C187: 0.0328741769 | D187: -0.0002095639766 | F187: -0.0002095639766
B188: 178 | C188: 0.0317992651 | D188: -0.004969063866 | F188: -0.004969063866
B189: 179 | C189: 0.03039759281 | D189: -0.006501755896 | F189: -0.006501755896
B190: 180 | C190: 0.03090865458 | D190: 0.002367646503 | F190: 0.002367646503
B191: 181 | C191: 0.03038664117 | D191: -0.002421460687 | F191: -0.002421460687
B192: 182 | C192: 0.03272949108 | D192: 0.01080596057 | F192: 0.01080596057
B193: 183 | C193: 0.03271194184 | D193: -8.094602971e-05 | F193: -8.094602971e-05
B194: 184 | C194: 0.03212186958 | D194: -0.002725624398 | F194: -0.002725624398
B195: 185 | C195: 0.03137158626 | D195: -0.003471995644 | F195: -0.003471995644
B196: 186 | C196: 0.03200787139 | D196: 0.002939903328 | F196: 0.002939903328
B197: 187 | C197: 0.03257676431 | D197: 0.002624887863 | F197: 0.002624887863
B198: 188 | C198: 0.03255068846 | D198: -0.0001203223333 | F198: -0.0001203223333
B199: 189 | C199: 0.032600878 | D199: 0.0002315623544 | F199: 0.0002315623544
B200: 190 | C200: 0.03167952848 | D200: -0.004260423074 | F200: -0.004260423074
B201: 191 | C201: 0.03267433899 | D201: 0.004588994369 | F201: 0.004588994369
B202: 192 | C202: 0.02977884388 | D202: -0.01345122902 | F202: -0.01345122902
B203: 193 | C203: 0.0294715337 | D203: -0.001428701493 | F203: -0.001428701493
B204: =B203+1 -> 194 | C204: 0.03067502017 | D204: 0.005578684901 | F204: 0.005578684901
B205: 195 | C205: 0.03004862146 | D205: -0.002908066806 | F205: -0.002908066806
B206: 196 | C206: 0.03178300231 | D206: 0.0080179512 | F206: 0.0080179512
B207: 197 | C207: 0.03097304867 | D207: -0.00375176401 | F207: -0.00375176401
... 3804 more rows

Sheet 9.2
B8: Trade Details | J8: Sensitivities | W8: Yield Curve | Z8: Interest Rate Correlations
B9: Maturity | C9: Notional | D9: PAY/REC | E9: Currency | F9: Swap Rate | G9: Add-on | H9: MTM | I9: Par Rate | J9: 2w | K9: 1m | L9: 3m | M9: 6m | N9: 1yr | O9: 2yr | P9: 3yr | Q9: 5yr | R9: 10yr | S9: 15 yr | T9: 20 yr | U9: 30 yr | W9: Tenor | X9: Rate | AA9: 2w | AB9: 1m | AC9: 3m | AD9: 6m | AE9: 1yr | AF9: 2yr | AG9: 3yr | AH9: 5yr | AI9: 10yr | AJ9: 15 yr | AK9: 20 yr | AL9: 30 yr
B10: 3 | C10: 100000000 | D10: PAY | E10: USD | F10: 0.02 | G10: =1%+IF(B10>2,1%,0)+IF(B10>5,2%,0) -> 0.02 | H10: =SwapDeltas($W$10:$W$21,$X$10:$X$21,B10,F10,C10*IF(D10="PAY",-1,1)) -> 292502.648 | I10: 0.02100634819 | J10: 0 | K10: 0 | L10: 0 | M10: 49.73694442 | N10: 171.8235066 | O10: 385.1724098 | P10: 28564.76514 | Q10: 0 | R10: 0 | S10: 0 | T10: 0 | U10: 0 | W10: =2/52 -> 0.03846153846 | X10: 0.005 | Z10: 2w | AA10: 1 | AB10: 0.69 | AC10: 0.64 | AD10: 0.55 | AE10: 0.34 | AF10: 0.21 | AG10: 0.16 | AH10: 0.11 | AI10: 0.06 | AJ10: 0.01 | AK10: 0 | AL10: -0.02
B11: 5 | C11: 100000000 | D11: REC | E11: USD | F11: 0.024 | G11: =1%+IF(B11>2,1%,0)+IF(B11>5,2%,0) -> 0.02 | H11: =SwapDeltas($W$10:$W$21,$X$10:$X$21,B11,F11,C11*IF(D11="PAY",-1,1)) -> -432786.3592 | I11: 0.02491776904 | J11: 0 | K11: 0 | L11: 0 | M11: -59.68433331 | N11: -206.1882079 | O11: -462.2068918 | P11: -1112.496189 | Q11: -45322.75691 | R11: 0 | S11: 0 | T11: 0 | U11: 0 | W11: =1/12 -> 0.08333333333 | X11: 0.0065 | Z11: 1m | AA11: =TRANSPOSE(AB10:AL10) -> 0.69 | AB11: 1 | AC11: 0.79 | AD11: 0.65 | AE11: 0.5 | AF11: 0.39 | AG11: 0.33 | AH11: 0.26 | AI11: 0.2 | AJ11: 0.14 | AK11: 0.11 | AL11: 0.09
B12: 7 | C12: 100000000 | D12: PAY | E12: EUR | F12: 0.025 | G12: =1%+IF(B12>2,1%,0)+IF(B12>5,2%,0) -> 0.04 | H12: =SwapDeltas($W$10:$W$21,$X$10:$X$21,B12,F12,C12*IF(D12="PAY",-1,1)) -> 1308665.565 | I12: 0.02704115506 | J12: 0 | K12: 0 | L12: 0 | M12: 62.17118053 | N12: 214.7793833 | O12: 481.4655123 | P12: 1158.850196 | Q12: 37932.89128 | R12: 23824.58078 | S12: 0 | T12: 0 | U12: 0 | W12: =3/12 -> 0.25 | X12: 0.008 | Z12: 3m | AA12: 0.64 | AB12: =TRANSPOSE(AC11:AL11) -> 0.79 | AC12: 1 | AD12: 0.85 | AE12: 0.67 | AF12: 0.53 | AG12: 0.46 | AH12: 0.37 | AI12: 0.29 | AJ12: 0.22 | AK12: 0.19 | AL12: 0.16
B13: 12 | C13: 50000000 | D13: PAY | E13: EUR | F13: 0.03 | G13: =1%+IF(B13>2,1%,0)+IF(B13>5,2%,0) -> 0.04 | H13: =SwapDeltas($W$10:$W$21,$X$10:$X$21,B13,F13,C13*IF(D13="PAY",-1,1)) -> 860076.7453 | I13: 0.03169687964 | J13: 0 | K13: 0 | L13: 0 | M13: 37.30270832 | N13: 128.8676299 | O13: 288.8793074 | P13: 695.3101178 | Q13: 2659.627923 | R13: 28910.41032 | S13: 16881.82704 | T13: 0 | U13: 0 | W13: =6/12 -> 0.5 | X13: 0.0105 | Z13: 6m | AA13: 0.55 | AB13: 0.65 | AC13: =TRANSPOSE(AD12:AL12) -> 0.85 | AD13: 1 | AE13: 0.85 | AF13: 0.72 | AG13: 0.65 | AH13: 0.56 | AI13: 0.46 | AJ13: 0.38 | AK13: 0.34 | AL13: 0.3
W14: 1 | X14: 0.014 | Z14: 1yr | AA14: 0.34 | AB14: 0.5 | AC14: 0.67 | AD14: =TRANSPOSE(AE13:AL13) -> 0.85 | AE14: 1 | AF14: 0.93 | AG14: 0.88 | AH14: 0.78 | AI14: 0.66 | AJ14: 0.6 | AK14: 0.56 | AL14: 0.52
B15: Margin schedule | E15: Risk weights (regular currencies) | J15: 116 | K15: 106 | L15: 94 | M15: 71 | N15: 59 | O15: 52 | P15: 49 | Q15: 51 | R15: 51 | S15: 51 | T15: 54 | U15: 62 | W15: 2 | X15: 0.018 | Z15: 2yr | AA15: 0.21 | AB15: 0.39 | AC15: 0.53 | AD15: 0.72 | AE15: =TRANSPOSE(AF14:AL14) -> 0.93 | AF15: 0.98 | AG15: 0.98 | AH15: 0.91 | AI15: 0.81 | AJ15: 0.75 | AK15: 0.72 | AL15: 0.68
B16: NGR | C16: =IF(SUMIF(H10:H13,">0")=0,1,MAX(0,SUM(H10:H13))/SUMIF(H10:H13,">0")) -> 0.8241595751 | W16: 3 | X16: 0.021 | Z16: 3yr | AA16: 0.16 | AB16: 0.33 | AC16: 0.46 | AD16: 0.65 | AE16: 0.88 | AF16: =TRANSPOSE(AG15:AL15) -> 0.98 | AG16: 1 | AH16: 0.96 | AI16: 0.87 | AJ16: 0.83 | AK16: 0.8 | AL16: 0.76
B17: Gross IM | C17: =SUMPRODUCT(C10:C13,G10:G13) -> 10000000 | E17: Weighted sensitivities | J17: =J9 -> 2w | K17: 1m | L17: 3m | M17: 6m | N17: 1yr | O17: 2yr | P17: 3yr | Q17: 5yr | R17: 10yr | S17: 15 yr | T17: 20 yr | U17: 30 yr | W17: 5 | X17: 0.025 | Z17: 5yr | AA17: 0.11 | AB17: 0.26 | AC17: 0.37 | AD17: 0.56 | AE17: 0.78 | AF17: 0.91 | AG17: =TRANSPOSE(AH16:AL16) -> 0.96 | AH17: 1 | AI17: 0.95 | AJ17: 0.92 | AK17: 0.89 | AL17: 0.86
B18: Net IM | C18: =0.4*GrossIM+0.6*NGR*GrossIM -> 8944957.451 | J18: =J10:U10*RiskWeights -> 0 | K18: 0 | L18: 0 | M18: 3531.323054 | N18: 10137.58689 | O18: 20028.96531 | P18: 1399673.492 | Q18: 0 | R18: 0 | S18: 0 | T18: 0 | U18: 0 | W18: 10 | X18: 0.0305 | Z18: 10yr | AA18: 0.06 | AB18: 0.2 | AC18: 0.29 | AD18: 0.46 | AE18: 0.66 | AF18: 0.81 | AG18: 0.87 | AH18: =TRANSPOSE(AI17:AL17) -> 0.95 | AI18: 1 | AJ18: 0.98 | AK18: 0.97 | AL18: 0.95
J19: =J11:U11*RiskWeights -> 0 | K19: 0 | L19: 0 | M19: -4237.587665 | N19: -12165.10427 | O19: -24034.75837 | P19: -54512.31324 | Q19: -2311460.602 | R19: 0 | S19: 0 | T19: 0 | U19: 0 | W19: 15 | X19: 0.035 | Z19: 15 yr | AA19: 0.01 | AB19: 0.14 | AC19: 0.22 | AD19: 0.38 | AE19: 0.6 | AF19: 0.75 | AG19: 0.83 | AH19: 0.92 | AI19: =TRANSPOSE(AJ18:AL18) -> 0.98 | AJ19: 1 | AK19: 0.99 | AL19: 0.98
J20: =J12:U12*RiskWeights -> 0 | K20: 0 | L20: 0 | M20: 4414.153818 | N20: 12671.98361 | O20: 25036.20664 | P20: 56783.65962 | Q20: 1934577.455 | R20: 1215053.62 | S20: 0 | T20: 0 | U20: 0 | W20: 20 | X20: 0.04 | Z20: 20 yr | AA20: 0 | AB20: 0.11 | AC20: 0.19 | AD20: 0.34 | AE20: 0.56 | AF20: 0.72 | AG20: 0.8 | AH20: 0.89 | AI20: 0.97 | AJ20: =TRANSPOSE(AK19:AL19) -> 0.99 | AK20: 1 | AL20: 0.99
J21: =J13:U13*RiskWeights -> 0 | K21: 0 | L21: 0 | M21: 2648.49229 | N21: 7603.190167 | O21: 15021.72398 | P21: 34070.19577 | Q21: 135641.0241 | R21: 1474430.926 | S21: 860973.1791 | T21: 0 | U21: 0 | W21: 30 | X21: 0.045 | Z21: 30 yr | AA21: -0.02 | AB21: 0.09 | AC21: 0.16 | AD21: 0.3 | AE21: 0.52 | AF21: 0.68 | AG21: 0.76 | AH21: 0.86 | AI21: 0.95 | AJ21: 0.98 | AK21: =TRANSPOSE(AL20) -> 0.99 | AL21: 1
B23: SIMM | E23: Currency aggregation | G23: Currency | H23: K | I23: S | J23: 2w | K23: 1m | L23: 3m | M23: 6m | N23: 1yr | O23: 2yr | P23: 3yr | Q23: 5yr | R23: 10yr | S23: 15 yr | T23: 20 yr | U23: 30 yr | Z23: Currency correlation | AB23: 0.22
B24: Delta margin | C24: =SQRT(H24^2+H25^2+H26^2+2*CurrCorr*I24*I25+2*CurrCorr*I24*I26+2*CurrCorr*I25*I26) -> 5561908.08 | G24: USD | H24: =SQRT(MMULT(J24:U24,MMULT(IRCorrMat,TRANSPOSE(J24:U24)))) -> 1091748.22 | I24: =MAX(MIN(SUM(J24:U24),H24),-H24) -> -973038.9988 | J24: =SUMIF(TradeCurrency,"="&$G24,J$18:J$21) -> 0 | K24: 0 | L24: 0 | M24: -706.2646108 | N24: -2027.517378 | O24: -4005.793062 | P24: 1345161.179 | Q24: -2311460.602 | R24: 0 | S24: 0 | T24: 0 | U24: 0
G25: EUR | H25: =SQRT(MMULT(J25:U25,MMULT(IRCorrMat,TRANSPOSE(J25:U25)))) -> 5671974.1 | I25: =MAX(MIN(SUM(J25:U25),H25),-H25) -> 5671974.1 | J25: 0 | K25: 0 | L25: 0 | M25: 7062.646108 | N25: 20275.17378 | O25: 40057.93062 | P25: 90853.8554 | Q25: 2070218.479 | R25: 2689484.546 | S25: 860973.1791 | T25: 0 | U25: 0
G26: GBP | H26: =SQRT(MMULT(J26:U26,MMULT(IRCorrMat,TRANSPOSE(J26:U26)))) -> 0 | I26: =MAX(MIN(SUM(J26:U26),H26),-H26) -> 0 | J26: 0 | K26: 0 | L26: 0 | M26: 0 | N26: 0 | O26: 0 | P26: 0 | Q26: 0 | R26: 0 | S26: 0 | T26: 0 | U26: 0
